bitfinex/quotes_ETHUSD_20220227
["timestamp","ask_amount","ask_price","bid_price","bid_amount"]
[1645999343307,3.6535,2604.3,2603.2,7.3]
[1645999343308,0.1535,2604.1,2603.2,7.3]
[1645999343509,0.1535,2604.2,2603.0,9.2092316]
[1645999343709,1.0,2605.3,2603.0,9.2092316]
[1645999343710,0.25,2604.6,2603.8,0.38357754]
[1645999344508,1.30676726,2604.2,2603.8,0.38357754]
[1645999345314,0.3828,2604.1,2603.8,0.38357754]
[1645999345910,0.1535,2604.0,2603.8,0.38357754]
[1645999347156,12.1128,2603.9,2602.1,5.1551]
[1645999347356,0.1535,2603.8,2602.1,5.1551]
[1645999347756,1.10048113,2602.9,2602.3,1.13062722]
[1645999347959,1.10048113,2602.9,2602.1,4.6971]
[1645999348157,1.10048113,2602.9,2602.1,3.958]
[1645999348357,1.10048113,2602.9,2602.1,3.5]
[1645999348358,1.48328113,2602.9,2602.1,3.5]
[1645999348559,13.21328113,2602.9,2602.1,3.5]
[1645999348759,0.3828,2602.7,2602.1,3.5]
[1645999349158,0.3828,2602.7,2601.3,1.32955983]
[1645999349359,0.3828,2602.7,2601.1,8.9168]
[1645999349858,1.10048113,2602.9,2601.1,8.9168]
[1645999349859,0.3828,2602.6,2601.1,8.9168]
[1645999350159,0.3828,2602.6,2601.2,0.9484]
[1645999350360,0.25,2603.0,2601.6,1.39838049]
[1645999350629,1.2465864,2603.9,2601.9,0.3828]
[1645999350630,0.2731,2603.9,2601.9,0.3828]
[1645999350816,0.25,2603.6,2602.3,0.3828]
[1645999351014,0.03819997,2604.1,2602.5,0.3828]
[1645999351213,0.03819997,2604.1,2602.7,0.3828]
[1645999351214,0.28819997,2604.1,2602.7,0.3828]
[1645999351413,1.48838523,2604.1,2602.8,0.3828]
[1645999351617,1.23838523,2604.1,2602.8,0.3828]
[1645999351814,1.23838523,2604.1,2602.8,0.8408]
[1645999352017,1.23838523,2604.1,2602.7,0.65836697]
[1645999352216,1.23838523,2604.1,2602.8,0.458]
[1645999352417,1.62118523,2604.1,2602.8,0.458]
[1645999352617,0.42099997,2604.1,2602.9,1.18999918]
[1645999352819,0.42099997,2604.1,2602.9,2.13775918]
[1645999353619,1.75547469,2604.1,2603.5,1.37983338]
[1645999353819,1.1903,2604.2,2603.5,1.37983338]
[1645999354021,1.1903,2604.2,2603.5,2.32737338]
[1645999354220,1.1903,2604.2,2603.5,2.78537338]
[1645999356255,0.02095202,2604.0,2603.5,1.40554]
[1645999357258,1.3517579,2604.0,2603.5,1.40554]
[1645999358405,0.02095202,2604.0,2603.5,1.40554]
[1645999358806,0.02095202,2604.0,2603.5,5.28834]
[1645999359003,0.02095202,2604.0,2603.5,2.50885209]
[1645999359203,0.02095202,2604.0,2603.5,6.00885209]
[1645999359403,0.02095202,2604.0,2603.6,0.1535]
[1645999359604,0.02095202,2604.0,2603.8,0.3828]
[1645999359804,0.02095202,2604.0,2603.9,1.10088]
[1645999360308,0.02095202,2604.0,2603.9,0.94738]
[1645999360707,0.02095202,2604.0,2603.9,1.78818]
[1645999361963,0.01457248,2604.0,2603.9,1.78818]
[1645999363163,0.1535,2605.1,2604.0,0.3828]
[1645999363364,2.55088392,2605.2,2604.2,17.1128]
[1645999363562,2.55088392,2605.2,2604.3,15.6128]
[1645999363770,2.55088392,2605.2,2604.5,0.3828]
[1645999363963,2.55088392,2605.2,2604.7,0.3828]
[1645999364164,2.55088392,2605.2,2604.8,0.8408]
[1645999364363,2.55088392,2605.2,2604.9,0.458]
[1645999364763,0.25,2605.6,2604.9,0.8408]
[1645999364965,0.1535,2606.4,2604.9,0.8408]
[1645999364966,2.97152676,2606.4,2605.1,0.3828]
[1645999365165,2.97152676,2606.4,2606.0,1.35376226]
[1645999365166,2.81802676,2606.4,2606.0,1.35376226]
[1645999366216,0.25213853,2606.6,2606.0,2.30039226]
[1645999366426,0.25213853,2606.6,2606.1,1.4046]
[1645999366427,0.25,2606.6,2606.1,1.4046]
[1645999366615,0.00213853,2607.0,2606.1,1.4046]
[1645999366815,0.00213853,2607.0,2606.2,0.3828]
[1645999367015,0.00213853,2607.0,2606.4,0.3828]
[1645999367316,2.52922815,2607.1,2606.6,1.03402258]
[1645999367516,2.52716668,2607.1,2606.7,0.8408]
[1645999367817,2.50921062,2607.8,2606.8,0.3828]
[1645999368017,0.25,2608.0,2606.9,4.3408]
[1645999368215,0.1534,2608.8,2607.0,0.1534]
[1645999368416,0.3828,2608.6,2607.1,0.458]
[1645999368617,1.4074232,2608.3,2607.1,0.458]
[1645999368818,1.4074232,2608.3,2607.1,1.40425]
[1645999369022,1.7902232,2608.3,2607.1,1.40425]
[1645999369653,1.22757406,2607.5,2607.1,1.40425]
[1645999370053,1.22757406,2607.5,2607.1,0.94625]
[1645999370253,1.22757406,2607.5,2606.8,1.14555884]
[1645999370254,0.76364488,2607.0,2606.8,1.14555884]
[1645999370453,0.76364488,2607.0,2606.5,0.458]
[1645999372258,1.95394488,2607.0,2606.5,0.458]
[1645999374109,1.95394488,2607.0,2606.6,1.37995484]
[1645999374809,1.95394488,2607.0,2606.6,1.38782088]
[1645999376512,0.00212399,2607.4,2606.8,4.2828]
[1645999376710,0.25212399,2607.6,2606.9,0.458]
[1645999376970,0.25,2607.6,2606.9,0.458]
[1645999377163,0.25,2607.6,2607.0,0.3828]
[1645999377363,0.00212399,2608.3,2607.1,0.458]
[1645999377565,0.25,2608.2,2607.2,3.5]
[1645999377764,0.25,2608.2,2607.0,1.4635845]
[1645999377765,0.00212399,2608.1,2607.3,0.458]
[1645999377967,0.25212399,2608.2,2607.3,0.458]
[1645999378363,0.25212399,2608.2,2607.4,0.3828]
[1645999378562,0.25212399,2608.2,2607.5,0.458]
[1645999378563,0.00212399,2608.2,2607.5,0.458]
[1645999378763,0.00212399,2608.4,2607.3,0.458]
[1645999378963,0.00212399,2608.4,2607.2,0.458]
[1645999379568,0.00212399,2608.4,2607.8,1.08769801]
[1645999379764,0.1532,2608.5,2607.2,0.458]
[1645999379964,0.00212399,2608.4,2607.2,0.458]
[1645999380367,0.00212399,2608.4,2606.8,3.9085504]
[1645999380607,0.1532,2608.3,2606.8,3.9085504]
[1645999380807,1.0545526,2607.6,2607.0,1.34033908]
[1645999381012,0.1534,2608.1,2607.0,1.34033908]
[1645999381407,0.00212399,2608.0,2607.0,1.34033908]
[1645999382011,0.3828,2607.9,2607.0,1.34033908]
[1645999382216,0.00212399,2607.8,2607.0,1.34033908]
[1645999382413,0.00212399,2608.0,2606.8,3.9085504]
[1645999383813,1.04948849,2607.5,2606.9,1.2035644]
[1645999384013,0.00212399,2608.0,2606.8,3.9085504]
[1645999384862,0.00212399,2608.0,2607.1,0.00882933]
[1645999385057,0.3828,2607.9,2607.1,0.00882933]
[1645999385257,2.93181264,2607.9,2607.1,0.00882933]
[1645999385557,1.43364037,2607.8,2607.1,1.06576978]
[1645999385756,1.43576436,2607.8,2607.1,0.00882933]
[1645999385960,0.00212399,2607.8,2607.1,0.00882933]
[1645999386963,0.00212399,2607.8,2607.3,1.04202411]
[1645999387263,2.93181264,2607.9,2607.3,1.04202411]
[1645999387568,2.54901264,2607.9,2607.3,1.04202411]
[1645999387766,0.00212399,2608.1,2607.3,1.04202411]
[1645999387767,0.00212399,2608.1,2607.4,0.4092316]
[1645999387963,5.49775071,2609.3,2607.5,17.458]
[1645999388219,5.49775071,2609.3,2608.6,1.09953417]
[1645999388220,6.21945071,2609.3,2608.6,1.09953417]
[1645999388418,2.71945071,2609.3,2608.6,1.09953417]
[1645999388717,0.3828,2609.2,2607.9,0.458]
[1645999389118,0.3828,2609.1,2607.9,0.458]
[1645999389718,0.3828,2608.9,2608.2,1.01241398]
[1645999389919,0.3828,2608.9,2607.9,0.458]
[1645999390821,0.00916224,2609.3,2607.9,0.458]
[1645999391019,0.00916224,2609.3,2607.9,12.5708]
[1645999391225,0.00916224,2609.3,2608.0,0.18008108]
[1645999391423,0.00916224,2609.3,2608.2,12.1128]
[1645999391620,0.01127919,2609.3,2608.4,12.1128]
[1645999391857,0.01127919,2609.3,2608.6,0.3828]
[1645999392060,0.01127919,2609.3,2608.7,0.458]
[1645999392261,0.01127919,2609.3,2608.8,0.3828]
[1645999392262,0.00916224,2609.3,2608.8,0.3828]
[1645999392461,6.224e-05,2609.3,2608.9,0.458]
[1645999392669,6.224e-05,2609.3,2608.9,12.5708]
[1645999393062,6.224e-05,2609.3,2608.9,1.8408]
[1645999393263,6.224e-05,2609.3,2608.9,0.8408]
[1645999393963,6.224e-05,2609.3,2608.9,12.5708]
[1645999394163,6.224e-05,2609.3,2608.9,4.3408]
[1645999394464,2.448e-05,2609.9,2609.3,0.3828]
[1645999394674,0.41173,2610.2,2609.6,28.73]
[1645999394866,1.1992,2610.9,2609.7,0.0264316]
[1645999395067,1.1992,2610.9,2609.8,12.55076506]
[1645999395271,1.1992,2610.9,2610.5,1.26045355]
[1645999395463,1.1992,2610.9,2609.8,1.82076506]
[1645999395464,1.70787384,2610.0,2609.8,1.18008108]
[1645999395707,1.70787384,2610.0,2609.9,0.458]
[1645999395909,1.70787384,2610.0,2609.6,0.458]
[1645999396504,2.88870618,2610.0,2609.6,0.458]
[1645999396707,1.70787384,2610.0,2609.6,0.458]
[1645999397510,1.70787384,2610.0,2608.9,3.5]
[1645999397511,0.3828,2609.8,2609.0,0.458]
[1645999397711,1.72632912,2609.6,2608.9,3.5]
[1645999397914,1.78595942,2609.0,2608.9,3.5]
[1645999398109,1.78595942,2609.0,2608.1,0.153153]
[1645999398411,1.78595942,2609.0,2608.0,0.00904662]
[1645999398412,0.3828,2608.8,2608.0,0.00904662]
[1645999399011,0.3828,2608.8,2607.3,1.24257155]
[1645999399209,0.15530955,2608.9,2607.3,5.20057155]
[1645999399210,0.3828,2608.6,2607.3,5.20057155]
[1645999399458,0.00210955,2608.5,2607.3,5.20057155]
[1645999400056,0.00210955,2608.5,2607.3,1.70057155]
[1645999400356,1.80285044,2608.1,2606.9,0.0264316]
[1645999400561,1.80285044,2608.1,2607.0,3.5]
[1645999400562,0.3828,2607.9,2607.0,3.5]
[1645999400758,0.00210955,2607.8,2607.0,3.5]
[1645999401457,0.00210955,2607.8,2607.0,4.91388067]
[1645999401858,1.24535817,2607.7,2607.0,4.91388067]
[1645999402062,1.24535817,2607.7,2607.0,0.611231]
[1645999402262,1.24535817,2607.7,2607.0,0.458]
[1645999403909,0.3828,2607.5,2607.0,0.458]
[1645999404111,3.8828,2607.4,2606.4,0.6114]
[1645999404311,0.3828,2607.2,2606.5,3.5]
[1645999404515,12.97535817,2607.7,2606.4,0.1534]
[1645999404516,0.3828,2607.0,2606.4,0.1534]
[1645999404713,0.3828,2606.8,2606.4,0.1534]
[1645999404913,0.3828,2607.5,2606.4,0.1534]
[1645999405113,5.0,2607.8,2606.4,0.1534]
[1645999405114,0.3828,2607.3,2606.4,0.1534]
[1645999405416,3.5,2607.7,2606.4,0.1534]
[1645999405417,0.1534,2607.6,2606.4,0.1534]
[1645999405619,0.25,2607.9,2606.4,0.1534]
[1645999406317,0.00210955,2607.9,2606.5,1.16373392]
[1645999406524,0.04128623,2608.4,2606.5,1.16373392]
[1645999406526,1.0,2609.0,2606.7,17.0]
[1645999406717,10.52800902,2609.5,2606.7,17.0]
[1645999406718,0.25,2608.3,2607.9,5.0]
[1645999406976,2.21765384,2610.0,2608.2,5.0]
[1645999406977,1.70787384,2610.0,2608.2,5.0]
[1645999407174,1.60207552,2609.9,2608.3,3.88119]
[1645999407371,1.60207552,2609.9,2608.9,5.0]
[1645999407574,1.60207552,2609.9,2609.0,4.1112]
[1645999407773,1.70787384,2610.0,2609.0,1.73684108]
[1645999407973,1.70787384,2610.0,2609.0,1.58364108]
[1645999408176,1.70787384,2610.0,2609.2,3.5]
[1645999408372,2.09067384,2610.0,2609.2,3.5]
[1645999408570,1.1145149,2609.8,2609.2,3.5]
[1645999408775,2.09067384,2610.0,2609.2,3.5]
[1645999409571,2.09277537,2610.0,2609.2,3.5]
[1645999409974,1.37090688,2609.6,2609.2,3.5]
[1645999410177,1.75370688,2609.6,2609.2,3.5]
[1645999411108,1.75370688,2609.6,2608.5,0.1532]
[1645999411309,0.00210153,2609.5,2608.5,3.6532]
[1645999411511,0.00210153,2609.5,2608.5,4.59932]
[1645999412710,0.00210153,2609.5,2608.5,1.09932]
[1645999414011,1.12795269,2609.2,2608.5,1.09932]
[1645999414210,1.07795269,2609.2,2608.5,1.09932]
[1645999414457,1.08005422,2609.2,2608.5,1.09932]
[1645999414662,0.00210153,2609.2,2608.5,1.09932]
[1645999414858,0.3828,2609.7,2609.3,0.00884077]
[1645999415460,0.01257664,2609.0,2608.5,1.09932]
[1645999416660,0.01257664,2609.0,2608.5,0.94612]
[1645999416862,0.01257664,2609.0,2608.7,0.3828]
[1645999416863,7.664e-05,2609.0,2608.7,0.3828]
[1645999417064,7.664e-05,2609.0,2608.8,0.8408]
[1645999417262,7.664e-05,2609.0,2608.9,0.1533]
[1645999417463,7.664e-05,2609.0,2608.9,1.9401]
[1645999417662,7.664e-05,2609.0,2608.9,2.12018108]
[1645999417864,7.664e-05,2609.0,2608.9,1.404]
[1645999418108,7.664e-05,2609.0,2608.9,4.904]
[1645999418811,7.664e-05,2609.0,2608.9,5.4401]
[1645999419010,7.664e-05,2609.0,2608.9,5.62018108]
[1645999419413,7.664e-05,2609.0,2608.9,20.85018108]
[1645999419712,0.00210153,2609.8,2609.3,0.3828]
[1645999420010,1.70787384,2610.0,2609.4,0.6112]
[1645999420210,1.70997537,2610.0,2609.4,0.6112]
[1645999420411,1.70787384,2610.0,2609.4,0.458]
[1645999420614,1.70787384,2610.0,2609.4,0.44790089]
[1645999420821,1.70787384,2610.0,2609.5,11.73]
[1645999421020,7.3,2611.2,2609.4,3.94790089]
[1645999421021,0.1532,2611.4,2609.7,28.73]
[1645999421214,0.005888,2611.6,2610.0,0.3828]
[1645999421215,0.409088,2611.6,2610.0,0.3828]
[1645999421417,1.60076061,2611.5,2610.1,0.458]
[1645999421858,1.60076061,2611.5,2610.1,0.6112]
[1645999421859,1.28087091,2611.3,2610.1,0.6112]
[1645999422062,1.28087091,2611.3,2610.2,3.5]
[1645999422264,0.3828,2611.4,2610.3,0.458]
[1645999424063,0.255888,2611.6,2610.3,0.458]
[1645999424262,0.255888,2611.6,2610.3,0.8408]
[1645999424464,0.0020943,2611.5,2610.4,1.49056852]
[1645999424663,0.0020943,2611.5,2610.5,3.5]
[1645999425064,0.0020943,2611.5,2610.5,3.958]
[1645999425809,1.60279547,2611.5,2610.5,3.94790093]
[1645999426314,0.0020943,2611.5,2610.5,3.94790093]
[1645999426509,0.3848943,2611.5,2610.5,3.94790093]
[1645999426715,0.3828,2611.3,2610.5,3.94790093]
[1645999426913,0.3848943,2611.3,2610.5,3.48990093]
[1645999427113,1.41889654,2610.9,2610.5,3.48990093]
[1645999427313,0.3848943,2611.3,2610.5,3.48990093]
[1645999427513,0.0020943,2611.3,2610.5,3.48990093]
[1645999427913,0.3828,2611.2,2610.5,3.48990093]
[1645999428113,0.3828,2611.2,2610.2,0.97315007]
[1645999428313,0.0020943,2611.1,2610.2,3.57715006]
[1645999428716,0.3828,2611.0,2610.2,3.54951999]
[1645999428920,0.1532,2611.5,2610.2,2.60399999]
[1645999428921,0.3828,2610.8,2610.2,2.60399999]
[1645999429772,1.20856735,2610.4,2610.2,2.60399999]
[1645999429971,1.20856735,2610.4,2609.4,3.958]
[1645999430172,0.0020943,2610.3,2609.4,3.908]
[1645999430774,0.0020943,2610.7,2609.4,3.908]
[1645999430974,5.0,2611.4,2609.5,17.3828]
[1645999430975,3.28283027,2611.3,2609.5,17.3828]
[1645999431274,3.28283027,2611.3,2609.6,7.5]
[1645999431275,0.1532,2611.1,2609.6,7.5]
[1645999431478,0.25,2611.3,2609.7,0.1531]
[1645999431479,1.60091522,2611.0,2609.7,0.1531]
[1645999431674,1.37987637,2610.6,2609.7,0.1531]
[1645999431874,1.37987637,2610.6,2609.5,0.458]
[1645999432978,0.1532,2611.0,2609.5,0.6112]
[1645999433409,0.3828,2611.1,2609.5,0.6112]
[1645999433612,0.3828,2610.9,2609.5,0.6112]
[1645999433814,0.3828,2610.9,2609.5,0.49719999]
[1645999434017,1.15962109,2610.6,2609.5,0.49719999]
[1645999434614,0.00208607,2610.5,2609.5,0.49719999]
[1645999434812,0.00208607,2610.5,2609.6,3.50856331]
[1645999435015,0.00208607,2610.5,2609.6,3.96656331]
[1645999435214,0.3828,2611.0,2609.6,3.96656331]
[1645999435413,0.00208607,2610.9,2609.6,3.96656331]
[1645999436015,0.00208607,2610.9,2609.6,4.34936331]
[1645999439963,0.00208607,2610.9,2609.6,4.18473215]
[1645999440165,0.00208607,2610.9,2609.6,4.74767215]
[1645999441639,5.0,2610.3,2609.6,3.34393215]
[1645999441844,0.3828,2610.2,2609.6,3.34393215]
[1645999442639,0.3828,2610.0,2609.0,0.02763007]
[1645999442841,0.3828,2610.0,2609.1,3.5]
[1645999443039,0.00208607,2609.9,2609.1,3.5]
[1645999445762,5.71e-06,2609.9,2609.1,3.5]
[1645999445961,0.1532,2610.3,2610.0,0.38279482]
[1645999445962,1.117e-05,2610.3,2610.0,0.38279482]
[1645999446164,1.66923441,2609.8,2609.1,3.5]
[1645999446462,0.3828,2609.8,2609.1,3.5]
[1645999447465,0.51943011,2609.9,2609.1,3.5]
[1645999447869,0.51943011,2609.9,2609.2,4.1112]
[1645999448325,2.56000173,2611.1,2610.3,0.25000548]
[1645999448722,2.56000173,2611.1,2610.3,1.09080548]
[1645999448921,2.56000173,2611.1,2610.4,0.1532]
[1645999449123,2.56000173,2611.1,2610.4,0.1032]
[1645999449327,0.005888,2611.6,2610.6,17.0]
[1645999449328,0.25,2611.6,2610.6,17.0]
[1645999449534,0.25,2611.6,2610.7,16.21380464]
[1645999449535,0.00207878,2611.5,2610.7,16.21380464]
[1645999449726,7.6e-05,2611.6,2611.0,0.3828]
[1645999449924,7.6e-05,2611.6,2611.2,0.3828]
[1645999450123,7.6e-05,2611.6,2611.4,0.3828]
[1645999450325,7.6e-05,2611.6,2611.5,0.8408]
[1645999450528,7.6e-05,2611.6,2611.5,0.9939]
[1645999451628,7.6e-05,2611.6,2611.5,4.4939]
[1645999452075,0.25,2612.4,2611.6,29.10270464]
[1645999452270,0.25,2612.4,2611.8,1.3828]
[1645999452469,5.807e-05,2612.3,2611.9,0.3828]
[1645999452771,0.57982,2612.6,2612.2,14.00417464]
[1645999452772,5.807e-05,2612.6,2612.2,14.00417464]
[1645999452970,5.807e-05,2612.6,2612.4,0.3828]
[1645999453170,5.807e-05,2612.6,2612.5,0.83070464]
[1645999453369,5.807e-05,2612.6,2612.5,0.98380464]
[1645999454070,5.807e-05,2612.6,2612.5,12.71380464]
[1645999454269,5.807e-05,2612.6,2612.5,13.71380464]
[1645999454471,5.807e-05,2612.6,2612.5,1.98380464]
[1645999454869,5.807e-05,2612.6,2612.5,0.98380464]
[1645999455074,5.807e-05,2612.6,2611.8,1.91345]
[1645999455272,5.807e-05,2612.6,2611.4,8.40557]
[1645999455273,0.39488387,2612.6,2611.7,0.18008108]
[1645999455615,0.01289403,2612.0,2610.3,0.25000548]
[1645999455920,0.0125261,2611.4,2610.3,0.25000548]
[1645999456112,0.12309599,2611.4,2610.3,0.25000548]
[1645999456313,0.15526462,2611.3,2610.3,0.25000548]
[1645999456513,0.53806462,2611.3,2610.3,0.25000548]
[1645999456725,1.28653562,2610.8,2610.3,0.25000548]
[1645999457919,0.00206462,2611.2,2610.3,0.25000548]
[1645999458520,0.00206462,2611.3,2610.3,0.25000548]
[1645999458919,1.39729347,2611.1,2610.3,0.25000548]
[1645999459119,0.00206462,2611.1,2610.3,0.25000548]
[1645999459361,0.38486462,2611.3,2610.3,0.25000548]
[1645999459969,0.00206462,2611.3,2610.3,12.36280548]
[1645999460161,0.00206462,2611.3,2610.3,0.63280548]
[1645999460364,0.00206462,2611.3,2610.5,0.3828]
[1645999460562,0.00206462,2611.3,2610.5,1.3828]
[1645999460962,0.25,2611.4,2610.6,11.8828]
[1645999461161,3.5,2612.2,2610.6,23.6128]
[1645999461363,2.78558319,2612.4,2610.6,24.6128]
[1645999461564,2.78558319,2612.4,2611.1,1.3828]
[1645999461565,1.60003909,2612.3,2611.1,1.3828]
[1645999461762,0.25,2612.4,2611.1,1.3828]
[1645999462164,1.60003142,2612.3,2611.1,1.3828]
[1645999462364,0.25,2612.4,2611.1,1.0]
[1645999462569,0.25,2612.4,2610.9,1.34840059]
[1645999462763,1.01368723,2612.1,2610.9,1.34840059]
[1645999462966,0.25,2612.4,2610.9,13.07840059]
[1645999462967,0.6328,2612.4,2610.9,13.07840059]
[1645999463230,0.6328,2612.4,2610.9,1.34840059]
[1645999463430,0.6328,2612.4,2610.9,1.73120059]
[1645999464033,1.02858469,2612.1,2610.9,1.73120059]
[1645999464230,0.25,2612.4,2610.9,1.73120059]
[1645999464633,0.00205651,2612.3,2610.9,1.73120059]
[1645999465334,1.40529976,2612.0,2610.9,1.73120059]
[1645999465533,0.00205651,2611.9,2610.9,1.73120059]
[1645999465735,0.00205651,2611.9,2610.9,0.3828]
[1645999466136,0.00205651,2611.9,2610.8,1.0]
[1645999466336,0.00205651,2611.9,2610.8,1.458]
[1645999466535,0.00205651,2611.9,2610.8,13.188]
[1645999466736,0.00205651,2611.9,2610.8,15.37555219]
[1645999466964,0.00205651,2611.9,2610.8,1.458]
[1645999467166,0.00205651,2611.9,2610.8,0.458]
[1645999467368,3.88485651,2611.9,2610.3,1.25000548]
[1645999467569,0.3828,2611.6,2610.3,1.25000548]
[1645999467771,0.3828,2611.4,2610.3,0.25000548]
[1645999467966,5.0,2611.7,2610.3,0.25000548]
[1645999467967,1.24003726,2610.6,2610.3,0.25000548]
[1645999468171,0.3828,2610.5,2610.3,0.25000548]
[1645999468569,3.5,2610.4,2610.3,0.25000548]
[1645999468872,3.5,2610.4,2610.1,0.153083]
[1645999468873,4.036,2610.4,2610.1,0.153083]
[1645999469869,4.036,2610.4,2608.9,0.51942463]
[1645999471020,15.766,2610.4,2608.9,0.51942463]
[1645999471616,1.15044135,2609.5,2608.9,0.51942463]
[1645999473124,1.38824244,2609.0,2608.9,0.51942463]
[1645999473322,0.85826728,2609.0,2608.9,0.51942463]
[1645999473524,1.5731,2609.6,2608.9,0.51942463]
[1645999474865,1.5731,2609.6,2609.1,0.00816047]
[1645999475465,1.5731,2609.6,2609.1,0.5275851]
[1645999478515,0.3828,2609.4,2609.1,0.5275851]
[1645999478716,5.0,2609.2,2609.1,0.00816047]
[1645999478919,20.23,2609.2,2609.1,0.00816047]
[1645999479115,20.8412,2609.2,2609.1,0.00816047]
[1645999479316,20.8412,2609.2,2609.1,0.02721501]
[1645999479915,21.224,2609.2,2609.1,0.01905454]
[1645999480116,17.724,2609.2,2609.1,0.01905454]
[1645999480625,17.724,2609.2,2607.3,0.91442704]
[1645999480626,12.1128,2608.7,2607.1,0.43552329]
[1645999480818,12.1128,2608.7,2606.6,7.3]
[1645999480819,1.15296547,2607.4,2606.6,7.3]
[1645999481020,1.5731,2607.5,2606.6,7.3]
[1645999481220,0.3828,2607.5,2606.6,7.3]
[1645999481879,2.63043265,2607.9,2606.9,1.34657491]
[1645999482072,2.63043265,2607.9,2606.5,0.01235416]
[1645999482370,2.63043265,2607.9,2606.6,19.4128]
[1645999482573,2.63043265,2607.9,2606.9,0.3828]
[1645999482871,2.63043265,2607.9,2607.3,0.3828]
[1645999483072,0.25,2608.0,2607.1,7.3]
[1645999483281,0.3828,2608.6,2606.8,0.458]
[1645999483471,1.23190355,2607.8,2607.0,1.0]
[1645999483672,0.3828,2607.7,2607.0,1.0]
[1645999483876,0.3828,2607.7,2606.4,7.3]
[1645999484076,0.3828,2607.7,2606.5,7.6715]
[1645999484473,5.3828,2607.7,2606.5,7.6715]
[1645999484682,5.3828,2607.5,2606.5,7.6715]
[1645999484875,0.3828,2607.3,2606.5,7.6715]
[1645999485714,1.19522985,2606.6,2606.5,7.6715]
[1645999486117,0.3828,2607.3,2606.5,7.6715]
[1645999486314,0.3828,2607.3,2606.8,0.07826664]
[1645999487118,3.5,2607.4,2606.8,0.07826664]
[1645999487119,0.3828,2607.1,2606.8,0.07826664]
[1645999487519,3.8828,2607.1,2606.8,0.07826664]
[1645999487919,0.3828,2607.1,2606.8,0.07826664]
[1645999488720,1.43512159,2607.2,2606.8,0.07826664]
[1645999490462,0.25,2607.5,2606.8,0.07826664]
[1645999490663,0.3828,2607.5,2606.8,0.07826664]
[1645999491463,2.76645021,2607.6,2606.8,0.07826664]
[1645999491662,2.76645021,2607.6,2606.5,7.6715]
[1645999491965,1.37955769,2607.3,2606.5,7.6715]
[1645999492163,1.37955769,2607.3,2606.5,7.8249]
[1645999494216,1.37955769,2607.3,2606.5,7.6715]
[1645999494914,1.37955769,2607.3,2606.5,7.5215]
[1645999496618,1.37955769,2607.3,2606.6,0.5362]
[1645999496869,2.76645021,2607.6,2606.6,0.61450309]
[1645999497975,0.25,2608.2,2606.9,17.0]
[1645999498278,2.64022854,2608.1,2607.0,4.4942]
[1645999498472,2.64022854,2608.1,2607.2,0.3828]
[1645999498674,2.64022854,2608.1,2607.4,0.3828]
[1645999498877,2.64022854,2608.1,2607.6,0.3828]
[1645999499073,2.64022854,2608.1,2607.8,0.3828]
[1645999499274,2.64022854,2608.1,2607.9,0.458]
[1645999499474,2.64022854,2608.1,2607.9,0.8408]
[1645999499674,2.64022854,2608.1,2607.9,0.458]
[1645999499877,0.06085125,2608.8,2607.9,0.36211537]
[1645999500375,1.38161069,2608.1,2607.4,0.33328108]
[1645999500621,1.38161069,2608.1,2607.0,0.18008108]
[1645999500823,1.38161069,2608.1,2606.6,16.90080309]
[1645999500824,0.3828,2608.0,2606.6,16.90080309]
[1645999501023,5.3828,2608.0,2606.6,0.07830309]
[1645999501228,0.3828,2607.4,2606.6,0.07830309]
[1645999501424,5.0,2607.5,2606.6,0.07830309]
[1645999501425,1.11343022,2606.7,2606.6,0.07830309]
[1645999501621,1.11343022,2606.7,2606.5,6.56230309]
[1645999503725,1.1034227,2606.7,2606.5,6.56230309]
[1645999504870,5.1534,2607.5,2606.5,6.56230309]
[1645999504871,0.1534,2607.5,2606.5,6.56230309]
[1645999505269,0.25,2607.6,2606.7,0.3828]
[1645999505473,0.25,2607.6,2606.7,7.6828]
[1645999505770,0.25,2607.6,2606.8,0.18008108]
[1645999506068,0.25,2607.6,2606.8,0.33348108]
[1645999506776,0.25,2607.6,2606.9,0.3828]
[1645999506976,0.25,2607.6,2607.1,0.3828]
[1645999507172,0.44365125,2608.8,2607.2,0.8408]
[1645999507374,0.44365125,2608.8,2607.3,0.6112]
[1645999508118,0.44365125,2608.8,2607.4,1.07738115]
[1645999508119,1.15930839,2608.5,2607.4,1.07738115]
[1645999508319,1.15930839,2608.5,2607.5,0.1532]
[1645999508918,1.54210839,2608.5,2607.5,0.15021806]
[1645999509120,1.51656464,2608.5,2607.4,0.1532]
[1645999510122,1.13376464,2608.5,2607.4,0.1532]
[1645999511123,1.51656464,2608.5,2607.4,0.1532]
[1645999511322,0.06085125,2608.8,2607.4,0.1532]
[1645999511522,0.06085125,2608.8,2607.5,0.3828]
[1645999511724,0.06085125,2608.8,2607.7,0.3828]
[1645999511977,0.06085125,2608.8,2607.9,0.3828]
[1645999512177,0.06085125,2608.8,2608.0,0.8408]
[1645999512975,0.06085125,2608.8,2608.0,0.458]
[1645999513775,0.06085125,2608.8,2607.6,0.458]
[1645999513776,1.19673099,2608.4,2607.6,0.458]
[1645999513975,1.19673099,2608.4,2607.5,0.458]
[1645999514775,1.19673099,2608.4,2607.4,0.1532]
[1645999514977,1.24469162,2607.9,2607.4,0.1532]
[1645999515374,0.25,2608.5,2607.4,0.1532]
[1645999516429,1.19849456,2608.3,2607.4,0.1532]
[1645999517834,0.25,2608.5,2607.5,0.3828]
[1645999518033,0.06085125,2608.8,2607.5,0.8408]
[1645999518433,0.06085125,2608.8,2607.6,0.18008108]
[1645999518634,0.06085125,2608.8,2607.7,0.3828]
[1645999518834,0.06085125,2608.8,2607.8,1.49049565]
[1645999519034,0.06085125,2608.8,2607.9,0.8408]
[1645999521071,0.06085125,2608.8,2607.9,4.3408]
[1645999521274,0.06085125,2608.8,2608.2,1.43991355]
[1645999521479,0.25,2609.1,2608.2,1.43991355]
[1645999521480,0.25,2609.1,2608.4,17.3828]
[1645999521675,0.70799968,2610.3,2608.6,0.3828]
[1645999521874,0.1532,2610.4,2608.8,0.3828]
[1645999521875,0.25,2610.2,2608.8,0.3828]
[1645999522074,0.25,2610.2,2608.7,15.23]